{"text_format":"1","workbook":"xlsx","n_sheets":2,"sheets":["CF_D","Bilanzanalyse"],"not_rendered":{"charts":0,"images":0,"macros":0,"external_links":0,"defined_names":1,"comments":0,"pivot_tables":0},"unopened":[],"bounds":{"document_bytes":16777216,"sheet_cells":100000,"rows_first":2000,"rows_last":500,"rows_between":2000,"halvings":0,"cell_chars":16384,"cell_head_chars":4096},"cells_cut":0,"cells_raw":0,"read":"whole","date_system":"1900"}

{"sheet":"CF_D","index":0,"n_rows":50,"n_cols":4,"rows_kept":50,"cut":false,"hidden":false,"merged":[[2,1,2,2]]}
[]
[null,"Konzern-Kapitalflussrechnung (IFRS)"]
[null,"vom 1. Oktober 2015 bis 31. März 2016"]
[null,null,"2015/16","2014/15"]
[null,null,"Tsd. €","Tsd. €"]
[null,"Cashflow aus der gewöhnlichen Geschäftstätigkeit:"]
[null,"    Konzernergebnis",{"$f":"47995+1331","v":49326},32400]
[null,"     Anpassung zur Überleitung des Konzernergebnisses zur Nettoveränderung\n     der liquiden Mittel aus laufender Geschäftstätigkeit:"]
[null,"        Ertragsteueraufwand",22203,15024]
[null,"        Zinserträge / Zinsaufwendungen",1447,736]
[null,"        Ergebnis aus At-Equity bewerteten Finanzanlagen",820,189]
[null,"        Abschreibungen",9382,9422]
[null,"        Gewinne/Verluste aus Abgang/Abwertung von Anlagevermögen",230,42]
[null,"        Erhaltene Zinsen",361,225]
[null,"        Gezahlte Zinsen",-802,-657]
[null,"        Erstattete Ertragsteuern",251,3239]
[null,"        Gezahlte Ertragsteuern",{"$f":"-19591-191","v":-19782},-20751]
[null,"        Sonstige wesentliche zahlungsunwirksame Aufwendungen und Erträge",0,69]
[null,"    Veränderungen des Working Capitals:"]
[null,"        Forderungen aus Lieferungen und Leistungen",-60,-38124]
[null,"        Vorräte",{"$f":"-13375-111","v":-13486},-18015]
[null,"        Sonstige Vermögenswerte",-1732,-2791]
[null,"        Verbindlichkeiten aus Lieferungen und Leistungen",{"$f":"-8871+111","v":-8760},5251]
[null,"        Rückstellungen und finanzielle Verbindlichkeiten",{"$f":"9762+191","v":9953},13916]
[null,"        Sonstige Verbindlichkeiten",-6559,3326]
[null,"    Gesamte Anpassungen",{"$f":"SUM(C9:C25)","v":-6534},{"$f":"SUM(D9:D25)","v":-28899}]
[null,"Netto-Kapitalzufluss/(-abfluss) aus der gewöhnlichen Geschäftstätigkeit",{"$f":"+C7+C26","v":42792},{"$f":"+D7+D26","v":3501}]
[null,"Cashflow aus der Investitionstätigkeit:"]
[null,"      Investitionen in Sachanlagen",-4278,-6040]
[null,"      Investitionen in sonstige immaterielle Vermögenswerte",-6055,-2252]
[null,"      Erlöse aus dem Verkauf von Anlagevermögen",42,24]
[null,"      Erwerb von nach der Equity Methode bilanzierten Beteiligungen und Vermögenswerten",{"$f":"-3321-810","v":-4131},-4375]
[null,"      Auszahlungen für Ausleihungen an At -Equity Beteiligungen",0,-5680]
[null,"      Auszahlungen für sonstige Ausleihungen ",-823,0]
[null,"      Einzahlungen aus Festgeldanlagen",110000,0]
[null,"      Erwerb konsolidierter Unternehmen / Geschäftsbetriebe abzgl. erhaltener Finanzmittel\n      (Optronik A.S., Türkei)",0,-1067]
[null,"Netto-Kapitalzufluss/(-abfluss) aus der Investitionstätigkeit",{"$f":"SUM(C29:C36)","v":94755},{"$f":"SUM(D29:D36)","v":-19390}]
[null,"Cashflow aus der Finanzierungsstätigkeit:"]
[null,"      Aufnahme/(Rückzahlung) der kurzfristigen Kredite",-178,-837]
[null,"      Aufnahme/(Rückzahlung) der langfristigen Kredite",-244,-238]
[null,"      (Zunahme)/Abnahme der Forderungen aus Finanzausgleich",-138172,35436]
[null,"      Zunahme/(Abnahme) der Verbindlichkeiten aus Finanzausgleich",-3820,11531]
[null,"      Zunahme/(Abnahme) der Verbindlichkeiten aus Finanzierungsleasing",-1205,-1244]
[null,"      Dividendenzahlung an die Aktionäre der Carl Zeiss Meditec AG",0,-32524]
[null,"Netto-Kapitalzufluss/(-abfluss) aus der Finanzierungsstätigkeit",{"$f":"SUM(C39:C44)","v":-143619},{"$f":"SUM(D39:D44)","v":12124}]
[null,"Einfluss von Wechselkursänderungen auf Zahlungsmittel und Zahlungsmitteläquivalente",{"$f":"-208-1","v":-209},910]
[null,"Zunahme/(Abnahme) der Zahlungsmittel und Zahlungsmitteläquivalente",{"$f":"+C27+C37+C45+C46","v":-6281},{"$f":"+D27+D37+D45+D46","v":-2855}]
[null,"Zahlungsmittel und Zahlungsmitteläquivalente am Beginn des Berichtszeitraumes",13041,10727]
[null,"Zahlungsmittel und Zahlungsmitteläquivalente am Ende des Berichtszeitraumes",{"$f":"+C47+C48","v":6760},{"$f":"+D47+D48","v":7872}]
[null,"Der nachfolgende Konzernanhang ist integraler Bestandteil des ungeprüften Konzernabschlusses."]

{"sheet":"Bilanzanalyse","index":1,"n_rows":14,"n_cols":5,"rows_kept":14,"cut":false,"hidden":true,"merged":[[0,0,0,1]]}
["Abw. Dec./ Sep",null,"Begründung","davon\n erklärt","Differenz"]
[{"$f":"#REF!","v":{"$error":"#REF!"}},"Geschäfts- oder Firmenwert","Zugang IMEX 7,432 Mio.",{"$f":"7432","v":7432},{"$f":"A2-D2","v":{"$error":"#REF!"}}]
[{"$f":"#REF!","v":{"$error":"#REF!"}},"Immaterielle Vermögenswerte","Zugang IMEX 5,551 Mio."]
[{"$f":"#REF!","v":{"$error":"#REF!"}},"Sachanlagen","Zugang CZM AG 4,0 Mio. vor Afa (hauptsächlich Olymp ca. 3,2 Mio.); Übernahme Mietgeräte bei CZM VG aus Umlaufvermögen (+1,2 Mio.)"]
[{"$f":"#REF!","v":{"$error":"#REF!"}},"Forderungen aus Lieferungen und Leistungen","hierin enthalten 2,9 Mio. Alcon-Lizenzen, Cash-Zahlung erfolgt erst im Januar"]
[{"$f":"#REF!","v":{"$error":"#REF!"}},"Forderungen gegen nahe stehende Unternehmen","v.a. Umsatzanstieg Q1 CZM AG (Umsatz je Quartal: GJ 10/11 --> 113 Mio., Q1 11/12 --> 141 Mio.)  "]
[{"$f":"#REF!","v":{"$error":"#REF!"}},"Sonstige kurzfristige finanzielle Vermögenswerte","Anstieg aus CZM Inc. aufgrund der Umgliederung der Kreditkartenforderungen von kurzf. Nicht-finanz. Vw in kurzf. Finanz. Vermögenswerte (+1,3 Mio.). Anstieg CZM AG (+0,3 Mio.) für Zinsabgrenzungen (COBA + HVB)",{"$f":"1300+300","v":1600},{"$f":"A7-D7","v":{"$error":"#REF!"}}]
[{"$f":"#REF!","v":{"$error":"#REF!"}},"Sonstige kurzfristige nicht-finanzielle Vermögenswerte","Kompensation des Umgliederungseffektes USA durch CZM F (+0,6 Mio., u.a. UST, ARAP), CZM AG (+0,4 Mio.) "]
[1207,"Andere langfristige Rückstellungen","IMEX earn out Anteil +2,218 Mio.; Kompensation durch CZM AG (-915 TEUR ATZ, -142 TEUR Verbrauch ERA RST und sonstiges)",{"$f":"(2.218-0.915-0.142)*1000","v":1161},46]
[{"$f":"#REF!","v":{"$error":"#REF!"}},"Kurzfristige Rückstellungen","IMEX earn out Anteil +2,149 Mio., Abgrenzung KöSteuer +1,5 Mio. (CZM AG), RST für Gewährleistungen pauschal +0,55 Mio. (CZM AG), Konzernrückstellung Q1 für Projekttehmen +0,85 Mio., Auflösung RST für Bonuszahlung im Dezember + RST-Bildung für geschätzte Logistikosten (CZM Japan), Zuführung RST CZM Inc. für Ferien, Warenrückgabe und Gewährleistung",{"$f":"(2.149+1.5+0.55+0.85)*1000","v":5048.9999999999991},{"$error":"#REF!"}]
[{"$f":"#REF!","v":{"$error":"#REF!"}},"Kurzfristige abgegrenzte Verbindlichkeiten","Auszahlung Renumeration für FY 10/11 CZM VG -0,8 Mio. (hier auch Reduzierung RST für ausstehende Rechnung enthalten) und USA -3,1 Mio. (u.a. MBO-Bonus, Super-Bonus); z.T. Kompensation/ Anstieg durch unterjährige Rechnungsabgrenzungen + Risiken CZM AG +1,36 Mio. (davon 0,6 Mio. Konzern-RST bzw. 0,3 Mio. CZM-Verbundene, die im Konzern wieder eliminiert werden); CZM SAS + FCI -04 Mio. Rückgang Personalverbindlichkeiten aufgrund erfolgter Bonuszahlung im Dez 11",{"$f":"(-0.8-3.1+1.36-0.3-0.4)*1000","v":-3239.9999999999995},{"$error":"#REF!"}]
[{"$f":"#REF!","v":{"$error":"#REF!"}},"Kurzfristige finanzielle Verbindlichkeiten","Devisentermingeschäfte CZM AG +3,3 Mio. EUR, Reduzierung ausstehende Checks USA aufgrund von Lieferantenzahlungen -0,6 Mio.",{"$f":"(3.3-0.6)*1000","v":2699.9999999999995},{"$error":"#REF!"}]
[{"$f":"#REF!","v":{"$error":"#REF!"}},"Verbindlichkeiten aus Lieferungen und Leistungen","CZM AG: Umstellung Lieferantenzahlungen auf tägliche Zahlungen nach Fälligkeit ab Q1 2012 (-3,9 Mio.)"]
[{"$f":"#REF!","v":{"$error":"#REF!"}},"Sonstige kurzfristige nicht-finanzielle Verbindlichkeiten","CZM AG: Lohnsteuerverbindlichkeiten +2,0 Mio. (Prämienzahlung 31.12.) , Lizenzen Alcon +2,2 Mio. Erhaltene Anzahlungen -1,0 Mio.,\nCZM VG: Erhöhung \"erhaltene Anzahlungen\" und Lohnsteuerverbindlichkeiten zum 31.12. (+0,6 Mio.)\nCZM Inc: Service-RST (+0,5 Mio.), abgegrenzter Service-Ertrag (+0,4 Mio.)\nCZM Japan: Bonuszahlung Dez 11 (+0,4 Mio.), Kundenvorauszahlungen OPMI Lumera + Vario (+0,5 Mio.), U-Anteil soziale Sicherheit (+0,2 Mio.)\nCZM Spanien: abgegrenter Ertrag (+0,3 Mio.) ",{"$f":"(2+2.2-1+0.6+0.5+0.4+0.4+0.5+0.2+0.3)*1000","v":6100.0000000000018},{"$error":"#REF!"}]